fUST/lending_fUST_20250915
["ID","MTS","AMOUNT","RATE_DAILY","PERIOD"]
[385656417,1757950232798,-500.0,0.00022848,2]
[385656418,1757950232807,-500.0,0.00022848,2]
[385656419,1757950232816,-500.0,0.00022848,2]
[385656420,1757950232825,-500.0,0.00022848,2]
[385656421,1757950232837,-414.59688989,0.00022848,2]
[385656422,1757950232847,-500.0,0.00022848,2]
[385656423,1757950232856,-500.0,0.00022848,2]
[385656424,1757950232867,-500.0,0.00022848,2]
[385656425,1757950232877,-500.0,0.00022848,2]
[385656426,1757950232886,-500.0,0.00022848,2]
[385656427,1757950232896,-500.0,0.00022848,2]
[385656428,1757950232906,-500.0,0.00022848,2]
[385656429,1757950232916,-500.0,0.00022848,2]
[385656430,1757950232927,-500.0,0.00022848,2]
[385656431,1757950232937,-500.0,0.00022848,2]
[385656432,1757950232947,-500.0,0.00022848,2]
[385656433,1757950232957,-500.0,0.00022848,2]
[385656434,1757950232967,-500.0,0.00022848,2]
[385656435,1757950232977,-500.0,0.00022848,2]
[385656436,1757950232986,-500.0,0.00022848,2]
[385656437,1757950232996,-500.0,0.00022848,2]
[385656438,1757950233006,-500.0,0.00022848,2]
[385656439,1757950233016,-500.0,0.00022848,2]
[385656440,1757950233026,-500.0,0.00022848,2]
[385656441,1757950233036,-500.0,0.00022848,2]
[385656442,1757950233046,-500.0,0.00022848,2]
[385656443,1757950233056,-500.0,0.00022848,2]
[385656444,1757950233067,-500.0,0.00022848,2]
[385656445,1757950233076,-500.0,0.00022848,2]
[385656446,1757950233086,-500.0,0.00022848,2]
[385656447,1757950233095,-210.43996057,0.00022848,2]
[385656448,1757950233104,-500.0,0.00022848,2]
[385656449,1757950233115,-500.0,0.00022848,2]
[385656450,1757950233124,-500.0,0.00022848,2]
[385656451,1757950233134,-500.0,0.00022848,2]
[385656452,1757950233144,-500.0,0.00022848,2]
[385656453,1757950233154,-500.0,0.00022848,2]
[385656454,1757950233164,-500.0,0.00022848,2]
[385656455,1757950233174,-221.04399606,0.00022848,2]
[385656456,1757950233183,-500.0,0.00022848,2]
[385656457,1757950233193,-500.0,0.00022848,2]
[385656458,1757950233203,-500.0,0.00022848,2]
[385656459,1757950233213,-500.0,0.00022848,2]
[385656460,1757950233222,-500.0,0.00022848,2]
[385656461,1757950233231,-500.0,0.00022848,2]
[385656462,1757950233240,-500.0,0.00022848,2]
[385656463,1757950233250,-500.0,0.00022848,2]
[385656464,1757950233259,-500.0,0.00022848,2]
[385656465,1757950233269,-500.0,0.00022848,2]
[385656466,1757950233278,-500.0,0.00022851,2]
[385656467,1757950233287,-500.0,0.00022873,2]
[385656468,1757950233297,-500.0,0.00022873,2]
[385656469,1757950233307,-496.66008079,0.00022873,2]
[385656470,1757950233316,-500.0,0.00022873,2]
[385656471,1757950233327,-500.0,0.00022873,2]
[385656472,1757950233337,-500.0,0.00022873,2]
[385656473,1757950233346,-500.0,0.00022873,2]
[385656474,1757950233355,-500.0,0.00022873,2]
[385656475,1757950233366,-347.04780642,0.00022873,2]
[385656476,1757950233376,-500.0,0.00022873,2]
[385656477,1757950233385,-10592.81255375,0.00022969,2]
[385656478,1757950233395,-2008.07395099,0.00023,2]
[385656479,1757950233404,-2953.76516966,0.00023,2]
[385656480,1757950233414,-15667.6296534,0.00023031,2]
[385656481,1757950233424,-500.0,0.00023125,2]
[385656482,1757950233433,-2532.17829734,0.00023197,2]
[385656483,1757950233443,-812.60051514,0.00023221,2]
[385656484,1757950233452,-1000.0,0.00023221,2]
[385656485,1757950233461,-1000.0,0.00023221,2]
[385656486,1757950233471,-1000.0,0.00023221,2]
[385656487,1757950233481,-1942.64,0.00023287,2]
[385656488,1757950233490,-182.49,0.00023318,2]
[385656489,1757950233500,-6816.67844224,0.00023331,2]
[385656490,1757950233509,-465.23206083,0.00023421,2]
[385656491,1757950233519,-1000.0,0.00023421,2]
[385656492,1757950233528,-1000.0,0.00023421,2]
[385656493,1757950233537,-1000.0,0.00023421,2]
[385656494,1757950233547,-1000.0,0.00023421,2]
[385656495,1757950233557,-1000.0,0.00023421,2]
[385656496,1757950233566,-2532.17829734,0.00023598,2]
[385656497,1757950233577,-1500.0,0.00023768,2]
[385656498,1757950233586,-1000.0,0.00023768,2]
[385656499,1757950233596,-250.0,0.00023807,2]
[385656500,1757950233606,-250.0,0.00023807,2]
[385656501,1757950233619,-250.0,0.00023807,2]
[385656502,1757950233629,-250.0,0.00023807,2]
[385656503,1757950233639,-151.0,0.00023807,2]
[385656504,1757950233648,-250.0,0.00023807,2]
[385656505,1757950233657,-250.0,0.00023807,2]
[385656506,1757950233667,-151.0,0.00023807,2]
[385656507,1757950233676,-250.0,0.00023807,2]
[385656508,1757950233686,-500.0,0.00023807,2]
[385656509,1757950233695,-151.0,0.00023807,2]
[385656510,1757950233704,-250.0,0.00023807,2]
[385656511,1757950233714,-500.0,0.00023807,2]
[385656512,1757950233723,-151.0,0.00023807,2]
[385656513,1757950233733,-151.0,0.00023807,2]
[385656514,1757950233742,-250.0,0.00023807,2]
[385656515,1757950233752,-151.0,0.00023807,2]
[385656516,1757950233761,-500.0,0.00023807,2]
[385656517,1757950233770,-374.47588989,0.00023807,2]
[385656518,1757950233779,-151.0,0.00023807,2]
[385656519,1757950233789,-500.0,0.00023807,2]
[385656520,1757950233799,-151.0,0.00023807,2]
[385656521,1757950233809,-151.0,0.00023807,2]
[385656522,1757950233818,-500.0,0.00023807,2]
[385656523,1757950233827,-151.0,0.00023807,2]
[385656524,1757950233838,-240.06755052,0.00023807,2]
[385656525,1757950233850,-500.0,0.00023807,2]
[385656526,1757950233859,-151.0,0.00023807,2]
[385656527,1757950233871,-162.83354249,0.00023807,2]
[385656528,1757950233882,-500.0,0.00023807,2]
[385656529,1757950233891,-500.0,0.00023807,2]
[385656530,1757950233900,-151.0,0.00023807,2]
[385656531,1757950233910,-500.0,0.00023807,2]
[385656532,1757950233921,-151.0,0.00023807,2]
[385656533,1757950233930,-151.0,0.00023807,2]
[385656534,1757950233940,-500.0,0.00023807,2]
[385656535,1757950233950,-151.0,0.00023807,2]
[385656536,1757950233959,-151.0,0.00023807,2]
[385656537,1757950233969,-500.0,0.00023807,2]
[385656538,1757950233978,-151.0,0.00023807,2]
[385656539,1757950233987,-500.0,0.00023807,2]
[385656540,1757950233996,-151.0,0.00023807,2]
[385656541,1757950234006,-500.0,0.00023807,2]
[385656542,1757950234015,-500.0,0.00023807,2]
[385656543,1757950234025,-500.0,0.00023807,2]
[385656544,1757950234035,-3576.16485024,0.00023819,2]
[385656545,1757950234044,-3170.96630088,0.00023819,2]
[385656546,1757950234054,-660.0,0.00023906,2]
[385656547,1757950234064,-3711.03964604,0.00023919,2]
[385656548,1757950234073,-660.0,0.00023937,2]
[385656549,1757950234083,-160.0,0.00023956,2]
[385656550,1757950234092,-500.0,0.00023957,2]
[385656551,1757950234102,-33168.0694524,0.00023958,2]
[385656552,1757950234114,-155.76395663,0.00023968,2]
[385656553,1757950234125,-500.0,0.00023968,2]
[385656554,1757950234134,-1500.0,0.00023968,2]
[385656555,1757950234143,-1144.80940494,0.00023968,2]
[385656556,1757950234153,-1500.0,0.00023968,2]
[385656557,1757950234163,-501.82792101,0.00023973,2]
[385656558,1757950234172,-500.385972,0.00023973,2]
[385656559,1757950234182,-286.54467478,0.00023973,2]
[385656560,1757950234191,-502.87653525,0.00023973,2]
[385656561,1757950234201,-502.17324957,0.00023973,2]
[385656562,1757950234210,-501.2309403,0.00023973,2]
[385656563,1757950234219,-500.894167,0.00023973,2]
[385656564,1757950234229,-500.0,0.00023973,2]
[385656565,1757950234238,-500.0,0.00023973,2]
[385656566,1757950234247,-500.0,0.00023973,2]
[385656567,1757950234257,-500.0,0.00023973,2]
[385656568,1757950234267,-501.28193224,0.00023973,2]
[385656569,1757950234276,-500.0,0.00023973,2]
[385656570,1757950234285,-501.22314137,0.00023973,2]
[385656571,1757950234295,-500.0,0.00023973,2]
[385656572,1757950234305,-500.0,0.00023973,2]
[385656573,1757950234314,-500.0,0.00023973,2]
[385656574,1757950234323,-500.0,0.00023973,2]
[385656575,1757950234332,-500.0,0.00023973,2]
[385656576,1757950234341,-500.0,0.00023973,2]
[385656577,1757950234350,-500.0,0.00023973,2]
[385656578,1757950234360,-500.0,0.00023973,2]
[385656579,1757950234371,-500.0,0.00023973,2]
[385656580,1757950234380,-2532.17829734,0.00023999,2]
[385656581,1757950234390,-661.0,0.00024044,2]
[385656582,1757950234399,-182.49,0.00024178,2]
[385656583,1757950234408,-160.0,0.00024292,2]
[385656584,1757950234417,-233.24851325,0.00024292,2]
[385656585,1757950234426,-217.82061966,0.00024292,2]
[385656586,1757950234435,-160.0,0.00024294,2]
[385656587,1757950234444,-2000.0,0.00024316,2]
[385656588,1757950234453,-2532.17829734,0.00024399,2]
[385656589,1757950234463,-723.19095702,0.00024444,2]
[385656590,1757950234472,-9027.61797874,0.000245,2]
[385656604,1757950237979,-1681.39,0.00023948,10]
[385656606,1757950237989,-1371.69276336,0.000245,2]
[385656609,1757950238012,-17706.77936567,0.000245,2]
[385656611,1757950238021,-260.0,0.00024504,2]
[385656613,1757950238031,-500.0,0.00024516,2]
[385656615,1757950238040,-2000.0,0.00024516,2]
[385656617,1757950238049,-1000.0,0.00024521,2]
[385656619,1757950238059,-1000.0,0.00024521,2]
[385656621,1757950238068,-1000.0,0.00024521,2]
[385656622,1757950238078,-1000.0,0.00024521,2]
[385656623,1757950238087,-501.47231285,0.00024521,2]
[385656624,1757950238097,-643.24831229,0.00024521,2]
[385656625,1757950238106,-1000.0,0.00024521,2]
[385656626,1757950238118,-657.07382482,0.00024521,2]
[385656627,1757950238127,-324.14810916,0.00024521,2]
[385656653,1757950244724,-255.03363907,0.00023767,2]
[385656654,1757950244734,-500.0,0.00023767,2]
[385656655,1757950244744,-509.24776129,0.00023767,2]
[385656656,1757950244753,-500.0,0.00023767,2]
[385656657,1757950244764,-306.91477787,0.00023767,2]
[385656658,1757950244773,-500.0,0.00023767,2]
[385656659,1757950244782,-500.0,0.00023767,2]
[385656660,1757950244792,-675.85189084,0.00024521,2]
[385656661,1757950244801,-1000.0,0.00024521,2]
[385656662,1757950244810,-1000.0,0.00024521,2]
[385656663,1757950244819,-1000.0,0.00024521,2]
[385656664,1757950244828,-901.0,0.00024549,2]
[385656665,1757950244839,-9314.95701971,0.00024557,2]
[385656666,1757950244851,-420.0,0.00024577,2]
[385656667,1757950244860,-420.0,0.00024577,2]
[385656668,1757950244871,-420.0,0.00024577,2]
[385656669,1757950244880,-216.592,0.00024656,2]
[385656670,1757950244890,-150.57746817,0.00024657,2]
[385656671,1757950244900,-480.0,0.00024657,3]
[385656672,1757950244909,-160.0,0.00024657,3]
[385656673,1757950244921,-482.7519075,0.00024657,3]
[385656674,1757950244931,-487.17838098,0.00024657,3]
[385656675,1757950244941,-480.0,0.00024657,3]
[385656676,1757950244950,-484.98791918,0.00024657,3]
[385656677,1757950244959,-177.29506966,0.00024657,3]
[385656678,1757950244968,-847.45018724,0.00024657,3]
[385656679,1757950244978,-480.0,0.00024657,3]
[385656680,1757950244987,-480.0,0.00024657,3]
[385656681,1757950244997,-480.0,0.00024657,3]
[385656682,1757950245007,-480.0,0.00024657,3]
[385656683,1757950245016,-2561.4992307,0.00024657,3]
[385656684,1757950245026,-383.47192492,0.00024657,3]
[385656685,1757950245036,-160.0,0.00024657,3]
[385656686,1757950245045,-480.0,0.00024657,3]
[385656687,1757950245055,-480.0,0.00024657,3]
[385656688,1757950245064,-480.0,0.00024657,3]
[385656689,1757950245074,-480.0,0.00024657,3]
[385656690,1757950245083,-480.0,0.00024657,3]
[385656691,1757950245092,-480.0,0.00024657,3]
[385656692,1757950245101,-480.0,0.00024657,3]
[385656693,1757950245110,-480.0,0.00024657,3]
[385656694,1757950245119,-480.0,0.00024657,3]
[385656695,1757950245129,-480.0,0.00024657,3]
[385656696,1757950245139,-480.0,0.00024657,3]
[385656697,1757950245148,-480.0,0.00024657,3]
[385656698,1757950245158,-480.0,0.00024657,3]
[385656699,1757950245167,-480.0,0.00024657,3]
[385656700,1757950245176,-480.0,0.00024657,3]
[385656701,1757950245185,-480.0,0.00024657,3]
[385656702,1757950245195,-196.38976308,0.00024657,3]
[385656703,1757950245204,-480.0,0.00024657,3]
[385656704,1757950245213,-438.51388425,0.00024657,3]
[385656705,1757950245222,-480.0,0.00024657,3]
[385656706,1757950245231,-480.0,0.00024657,3]
[385656707,1757950245241,-480.0,0.00024657,3]
[385656708,1757950245250,-480.0,0.00024657,3]
[385656709,1757950245259,-480.0,0.00024657,3]
[385656710,1757950245268,-480.0,0.00024657,2]
[385656711,1757950245278,-480.0,0.00024657,3]
[385656712,1757950245287,-480.0,0.00024657,3]
[385656713,1757950245297,-160.0,0.00024657,3]
[385656714,1757950245307,-480.0,0.00024657,3]
[385656715,1757950245317,-620.17136819,0.00024657,3]
[385656716,1757950245326,-480.0,0.00024657,3]
[385656718,1757950245337,-233.52,0.00024657,3]
[385656719,1757950245346,-480.0,0.00024657,3]
[385656720,1757950245355,-480.0,0.00024657,3]
[385656721,1757950245364,-480.0,0.00024657,3]
[385656722,1757950245375,-480.0,0.00024657,3]
[385656723,1757950245384,-480.0,0.00024657,3]
[385656724,1757950245394,-480.0,0.00024657,3]
[385656725,1757950245404,-480.0,0.00024657,3]
[385656726,1757950245413,-480.0,0.00024657,3]
[385656727,1757950245422,-480.0,0.00024657,3]
[385656728,1757950245432,-480.0,0.00024657,3]
[385656729,1757950245441,-480.0,0.00024657,3]
[385656730,1757950245450,-480.0,0.00024657,3]
[385656731,1757950245459,-500.0,0.00024657,3]
[385656732,1757950245469,-317.60967905,0.00024657,3]
[385656734,1757950245478,-480.0,0.00024657,3]
[385656735,1757950245488,-480.0,0.00024657,3]
[385656737,1757950245497,-493.98,0.00024657,3]
[385656739,1757950245506,-480.0,0.00024657,3]
[385656741,1757950245516,-549.1,0.00024657,3]
[385656745,1757950245526,-233.24851325,0.00024657,3]
[385656748,1757950245535,-480.0,0.00024657,3]
[385656751,1757950245544,-480.0,0.00024657,3]
[385656754,1757950245554,-2572.97,0.00024657,3]
[385656758,1757950245563,-460.0,0.00024657,3]
[385656761,1757950245573,-480.0,0.00024657,3]
[385656764,1757950245582,-484.43477896,0.00024657,3]
[385656767,1757950245591,-480.0,0.00024657,3]
[385656770,1757950245601,-265.75938707,0.00024657,3]
[385656774,1757950245610,-480.0,0.00024657,3]
[385656777,1757950245619,-480.0,0.00024657,3]
[385656780,1757950245631,-480.0,0.00024657,3]
[385656783,1757950245640,-505.62893194,0.00024657,3]
[385656786,1757950245650,-480.0,0.00024657,3]
[385656790,1757950245660,-625.55885632,0.00024657,3]
[385656793,1757950245669,-811.14,0.00024657,3]
[385656797,1757950245679,-480.0,0.00024657,3]
[385656800,1757950245689,-480.0,0.00024657,3]
[385656805,1757950245701,-4445.94,0.00024657,3]
[385656808,1757950245711,-480.0,0.00024657,3]
[385656813,1757950245721,-3308.75,0.00024657,3]
[385656816,1757950245730,-480.0,0.00024657,3]
[385656820,1757950245740,-480.0,0.00024657,3]
[385656824,1757950245749,-480.0,0.00024657,3]
[385656828,1757950245759,-480.0,0.00024657,3]
[385656831,1757950245768,-480.0,0.00024657,3]
[385656834,1757950245777,-480.0,0.00024657,3]
[385656837,1757950245787,-480.0,0.00024657,3]
[385656840,1757950245796,-480.0,0.00024657,3]
[385656843,1757950245805,-480.0,0.00024657,3]
[385656846,1757950245815,-480.0,0.00024657,3]
[385656849,1757950245824,-480.0,0.00024657,3]
[385656851,1757950245839,-480.0,0.00024657,3]
[385656854,1757950245869,-480.0,0.00024657,3]
[385656856,1757950245889,-489.74970856,0.00024657,3]
[385656858,1757950245901,-370.09916826,0.00024657,3]
[385656860,1757950245910,-480.0,0.00024657,3]
[385656862,1757950245922,-480.0,0.00024657,3]
[385656864,1757950245932,-480.0,0.00024657,3]
[385656866,1757950245942,-480.0,0.00024657,3]
[385656868,1757950245952,-480.0,0.00024657,3]
[385656870,1757950245961,-480.0,0.00024657,3]
[385656872,1757950245971,-642.95,0.00024657,3]
[385656873,1757950245980,-480.0,0.00024657,3]
[385656874,1757950245989,-217.82061966,0.00024657,3]
[385656875,1757950245999,-480.0,0.00024657,3]
[385656876,1757950246009,-480.0,0.00024657,3]
[385656877,1757950246018,-480.0,0.00024657,3]
[385656878,1757950246028,-160.0,0.00024657,3]
[385656879,1757950246037,-480.0,0.00024657,3]
[385656880,1757950246047,-480.0,0.00024657,3]
[385656881,1757950246057,-480.0,0.00024657,3]
[385656882,1757950246066,-480.0,0.00024657,3]
[385656883,1757950246076,-482.32312368,0.00024657,3]
[385656884,1757950246085,-480.0,0.00024657,3]
[385656885,1757950246095,-487.99701108,0.00024657,3]
[385656886,1757950246105,-480.0,0.00024657,3]
[385656887,1757950246115,-480.0,0.00024657,3]
[385656888,1757950246124,-160.0,0.00024657,3]
[385656889,1757950246133,-480.0,0.00024657,3]
[385656890,1757950246142,-1366.2,0.00024657,3]
[385656891,1757950246152,-480.0,0.00024657,3]
[385656892,1757950246162,-655.87,0.00024657,3]
[385656893,1757950246171,-628.48068004,0.00024657,3]
[385656894,1757950246181,-160.0,0.00024657,3]
[385656895,1757950246191,-480.0,0.00024657,3]
[385656896,1757950246201,-480.0,0.00024657,3]
[385656898,1757950246210,-480.0,0.00024657,3]
[385656899,1757950246219,-500.0,0.00024673,2]
[385656901,1757950246228,-500.0,0.00024673,2]
[385656903,1757950246238,-257.52389537,0.00024673,2]
[385656905,1757950246248,-500.0,0.00024673,2]
[385656907,1757950246257,-150.0,0.00024673,2]
[385656909,1757950246267,-500.0,0.00024673,2]
[385656911,1757950246276,-500.0,0.00024673,2]
[385656913,1757950246286,-500.0,0.00024673,2]
[385656915,1757950246295,-500.0,0.00024673,2]
[385656917,1757950246305,-500.0,0.00024673,2]
[385656919,1757950246315,-501.53273402,0.00024673,2]
[385656921,1757950246324,-1680.0,0.00024687,2]
[385656923,1757950246333,-174.89359049,0.00024763,8]
[385656925,1757950246342,-151.967,0.00024763,8]
[385656926,1757950246352,-7126.45544172,0.000248,2]
[385656928,1757950246361,-1734.01628668,0.000248,4]
[385656930,1757950246371,-2532.17829734,0.000248,2]
[385656932,1757950246380,-2375.48514724,0.00024852,2]
[385656935,1757950246393,-6885.33086153,0.00024862,2]
[385656946,1757950246496,-620.1916192,0.00024657,3]
[385656948,1757950246505,-38.02042475,0.000247,2]
[385656967,1757950477282,3340.0,0.00024,30]
[385656973,1757951045881,184.5924811,0.00020525,2]
[385656975,1757951225094,-152.22795054,0.00021503,2]
[385656976,1757951355084,-1140.6116491,0.00021075,2]
[385656977,1757951355105,-2403.84102455,0.00021288,2]
[385656978,1757951355127,-4847.77204946,0.00021503,2]
[385656979,1757951355151,-344.34434847,0.00021939,2]
[385656980,1757951374311,155.43639724,0.00020525,2]
[385657023,1757951432423,-679.06268728,0.00020864,2]
[385657024,1757951432435,-4320.93731272,0.00020864,2]
[385657025,1757951432445,-231.21829909,0.00021939,2]
[385657026,1757951432454,-1000.0,0.00022345,2]
[385657027,1757951432463,-3398.04438818,0.00022443,2]
[385657028,1757951432475,-36605.74334892,0.00022443,2]
[385657029,1757951432484,-236.6671919,0.00022481,2]
[385657030,1757951432493,-747.60739594,0.00022628,2]
[385657031,1757951432503,-327.4920905,0.00022688,2]
[385657032,1757951432512,-18.33268291,0.00022733,2]
[385657054,1757951438201,-338.67984629,0.00022733,2]
[385657055,1757951438213,-1200.0,0.00022776,2]
[385657056,1757951438223,-1582.9211408,0.00022778,2]
[385657057,1757951438232,-65.57616679,0.00022854,2]
[385657078,1757951438561,-234.42383321,0.00022854,2]
[385657079,1757951438571,-300.0,0.00022854,2]
[385657080,1757951438580,-300.0,0.00022854,2]
[385657081,1757951438589,-300.0,0.00022854,2]
[385657082,1757951438599,-3595.40676804,0.00022855,2]
[385657083,1757951438639,-5129.68902846,0.00022855,2]
[385657084,1757951438650,-1940.40289269,0.00022855,2]
[385657085,1757951438662,-4229.09241227,0.00022855,2]
[385657086,1757951438671,-185.043909,0.00022856,2]
[385657087,1757951438681,-1200.0,0.00023009,2]
[385657088,1757951438690,-300.0,0.0002301,2]
[385657089,1757951438699,-507.715831,0.00023013,2]
[385657090,1757951438708,-585.66311844,0.00023039,2]
[385657091,1757951438718,-413.87109012,0.00023819,2]
[385657092,1757951438727,-305.14296716,0.00023819,2]
[385657093,1757951438736,-160.0,0.00024297,2]
[385657094,1757951438745,-233.24851325,0.00024297,2]
[385657095,1757951438756,-217.82061966,0.00024496,2]
[385657096,1757951438765,-150.38800619,0.00024557,2]
[385657097,1757951438774,-279.37251766,0.0002464,2]
[385657098,1757951438783,-154.4629214,0.0002464,2]
[385657099,1757951438793,-30.1780939,0.0002464,2]
[385657116,1757951440548,-469.8219061,0.0002464,2]
[385657117,1757951440558,-500.0,0.0002464,2]
[385657118,1757951440567,-238.34438484,0.0002464,2]
[385657119,1757951440577,-500.0,0.0002464,2]
[385657120,1757951440587,-500.0,0.0002464,2]
[385657121,1757951440597,-216.87840295,0.0002464,2]
[385657122,1757951440607,-500.0,0.0002464,2]
[385657123,1757951440616,-500.0,0.0002464,2]
[385657124,1757951440625,-500.0,0.0002464,2]
[385657125,1757951440635,-26.62696887,0.0002464,2]
[385657126,1757951440646,-473.37303113,0.0002464,2]
[385657127,1757951440655,-269.29385791,0.0002464,2]
[385657128,1757951440667,-230.70614209,0.0002464,2]
[385657129,1757951440676,-281.82912756,0.0002464,2]
[385657130,1757951440690,-218.17087244,0.0002464,2]
[385657131,1757951440699,-500.0,0.0002464,2]
[385657132,1757951440708,-500.0,0.0002464,2]
[385657133,1757951440718,-500.0,0.0002464,2]
[385657134,1757951440727,-500.0,0.0002464,2]
[385657135,1757951440737,-500.0,0.0002464,2]
[385657136,1757951440746,-500.0,0.0002464,2]
[385657137,1757951440757,-500.0,0.0002464,2]
[385657138,1757951440766,-500.0,0.0002464,2]
[385657139,1757951440775,-500.0,0.0002464,2]
[385657140,1757951440785,-500.0,0.0002464,2]
[385657141,1757951440794,-500.0,0.0002464,2]
[385657142,1757951440804,-500.0,0.0002464,2]
[385657143,1757951440812,-500.0,0.0002464,2]
[385657144,1757951440822,-500.0,0.0002464,2]
[385657145,1757951440831,-500.0,0.0002464,2]
[385657146,1757951440841,-500.0,0.0002464,2]
[385657147,1757951440850,-500.0,0.0002464,2]
[385657148,1757951440859,-500.0,0.0002464,2]
[385657149,1757951440869,-142.81795455,0.0002464,2]
[385657150,1757951440880,-112.32900827,0.0002464,2]
[385657151,1757951440889,-378.39081917,0.0002464,2]
[385657191,1757951446476,-121.60918083,0.0002464,2]
[385657193,1757951446486,-500.0,0.0002464,2]
[385657195,1757951446496,-500.0,0.0002464,2]
[385657197,1757951446505,-500.0,0.0002464,2]
[385657199,1757951446517,-500.0,0.0002464,2]
[385657201,1757951446527,-500.0,0.00024641,2]
[385657203,1757951446536,-151.0,0.00024641,2]
[385657206,1757951446545,-151.0,0.00024641,2]
[385657208,1757951446555,-500.0,0.00024641,2]
[385657210,1757951446565,-151.0,0.00024641,2]
[385657212,1757951446574,-151.0,0.00024641,2]
[385657214,1757951446583,-301.42319726,0.00024641,2]
[385657216,1757951446595,-198.57680274,0.00024641,2]
[385657218,1757951446604,-151.0,0.00024641,2]
[385657219,1757951446613,-500.0,0.00024641,2]
[385657220,1757951446622,-151.0,0.00024641,2]
[385657221,1757951446631,-500.0,0.00024641,2]
[385657222,1757951446641,-166.15641849,0.00024641,2]
[385657223,1757951446650,-500.0,0.00024641,2]
[385657224,1757951446659,-500.0,0.00024641,2]
[385657225,1757951446668,-500.0,0.00024641,2]
[385657226,1757951446678,-500.0,0.00024641,2]
[385657228,1757951446687,-500.0,0.00024641,2]
[385657230,1757951446696,-500.0,0.00024641,2]
[385657232,1757951446706,-500.0,0.00024641,2]
[385657233,1757951446715,-500.0,0.00024641,2]
[385657234,1757951446724,-500.0,0.00024641,2]
[385657236,1757951446733,-500.0,0.00024641,2]
[385657238,1757951446743,-1401.16,0.00024646,10]
[385657240,1757951446753,-1167.63,0.00024647,10]
[385657241,1757951446764,-151.0,0.00024656,2]
[385657242,1757951446773,-151.0,0.00024656,2]
[385657243,1757951446782,-151.0,0.00024656,2]
[385657244,1757951446791,-500.0,0.00024656,2]
[385657245,1757951446800,-151.0,0.00024656,2]
[385657246,1757951446812,-151.0,0.00024656,2]
[385657247,1757951446821,-1063.93654178,0.00024656,2]
[385657248,1757951446832,-797.75345822,0.00024656,2]
[385657249,1757951446842,-151.0,0.00024656,2]
[385657250,1757951446851,-151.0,0.00024656,2]
[385657251,1757951446861,-151.0,0.00024656,2]
[385657252,1757951446870,-500.0,0.00024656,2]
[385657253,1757951446879,-500.0,0.00024656,2]
[385657254,1757951446888,-500.0,0.00024656,2]
[385657255,1757951446897,-192.40502363,0.00024656,2]
[385657256,1757951446906,-505.0,0.00024656,2]
[385657257,1757951446915,-163.0,0.00024656,2]
[385657258,1757951446925,-151.0,0.00024656,2]
[385657259,1757951446935,-155.35674608,0.00024656,2]
[385657260,1757951446943,-188.30764878,0.00024656,2]
[385657261,1757951446952,-151.0,0.00024656,2]
[385657262,1757951446962,-500.0,0.00024656,2]
[385657263,1757951446971,-500.0,0.00024656,2]
[385657264,1757951446980,-151.0,0.00024656,2]
[385657265,1757951446989,-1571.84,0.00024656,2]
[385657266,1757951446998,-1571.84,0.00024656,2]
[385657267,1757951447006,-1571.84,0.00024656,2]
[385657268,1757951447016,-1571.84,0.00024656,2]